[Event "World Junior U20 Open 2018"]
[Site "Gebze"]
[Date "2018.09.12"]
[Round "8.77"]
[White "Cansun, Can Alp"]
[Black "Daghan, Devran"]
[Result "0-1"]
[ECO "B53"]
[WhiteElo "2110"]
[BlackElo "2004"]
[Annotator "NA"]
[PlyCount "142"]
[EventDate "2018.09.05"]
[EventType "swiss"]
[EventCountry "TUR"]
[SourceTitle "playchess.com"]
[Source "ChessBase"]
[SourceQuality "1"]
[TimeControl "40/5400+30:1800+30"]

1. e4 {[%emt 0:00:30]} c5 {[%emt 0:00:30]} 2. Nf3 {[%emt 0:00:00]} d6 {[%emt 0:00:30]} 3. d4 {[%emt 0:00:00]} cxd4 {[%emt 0:00:00]} 4. Qxd4 {[%emt 0:00:30]} e5 {[%emt 0:00:00]} 5. Qe3 {[%emt 0:00:30]} Be7 {[%emt 0:00:30]} 6. Nc3 {[%emt 0:00:30]} Nf6 {[%emt 0:00:30]} 7. Bc4 {[%emt 0:00:00]} O-O {[%emt 0:01:30]} 8. O-O {[%emt 0:00:00]} a6 {[%emt 0:03:30]} 9. Rd1 {[%emt 0:00:30]} Nbd7 {[%emt 0:02:30]} 10. Qe2 {[%emt 0:01:30]} b5 {[%emt 0:05:30]} 11. Bb3 {[%emt 0:00:30]} Bb7 {[%emt 0:00:30]} 12. Bg5 {[%emt 0:12:30]} Qc7 {[%emt 0:11:30]} 13. a3 {[%emt 0:08:30]} Rac8 {[%emt 0:18:30]} 14. Nd2 {[%emt 0:06:30]} Nc5 {[%emt 0:09:30]} 15. Bxf6 {[%emt 0:11:30]} Nxb3 {[%emt 0:01:30]} 16. cxb3 {[%emt 0:10:30]} Bxf6 {[%emt 0:02:30]} 17. Nf1 {[%emt 0:00:00]} Bg5 {[%emt 0:03:30]} 18. Qg4 {[%emt 0:00:00]} Bf4 {[%emt 0:01:30]} 19. Rd3 {[%emt 0:04:30]} Rcd8 {[%emt 0:04:30]} 20. Rad1 {[%emt 0:03:30]} Bc8 {[%emt 0:06:30]} 21. Qe2 {[%emt 0:00:30]} f5 {[%emt 0:07:36]} 22. Ne3 {[%emt 0:14:30]} fxe4 {[%emt 0:04:11]} 23. Nxe4 {[%emt 0:00:30]} Bxe3 {[%emt 0:00:33]} 24. Qxe3 {[%emt 0:00:30]} Bf5 {[%emt 0:11:19]} 25. f3 {[%emt 0:03:30]} d5 {[%emt 0:00:55]} 26. Rxd5 {[%emt 0:04:00]} Rxd5 {[%emt 0:00:34]} 27. Rxd5 {[%emt 0:00:10]} Bxe4 {[%emt 0:00:00]} 28. fxe4 {[%emt 0:06:38]} Qc2 {[%emt 0:00:06]} 29. h3 {[%emt 0:01:32]} Qxb2 {[%emt 0:00:45]} 30. b4 {[%emt 0:03:58]} h6 {[%emt 0:02:05]} 31. Rd1 {[%emt 0:04:43]} Kh7 {[%emt 0:00:44]} 32. Qg3 {[%emt 0:01:22]} Qe2 {[%emt 0:01:30]} 33. Rd7 {[%emt 0:01:06]} Qf1+ {[%emt 0:00:22]} 34. Kh2 {[%emt 0:00:05]} Qf6 {[%emt 0:00:10]} 35. Rd5 {[%emt 0:01:37]} Re8 {[%emt 0:00:20]} 36. Kg1 {[%emt 0:00:43]} Qb6+ {[%emt 0:00:39]} 37. Qf2 {[%emt 0:00:16]} Qxf2+ {[%emt 0:01:05]} 38. Kxf2 {[%emt 0:00:30]} Re6 {[%emt 0:00:00]} 39. Kf3 {[%emt 0:00:00]} Kg6 {[%emt 0:00:00]} 40. g3 {[%emt 0:00:00]} Kf6 {[%emt 0:00:00]} 41. Rc5 {[%emt 0:06:20]} Rd6 {[%emt 0:05:36]} 42. Ke3 {[%emt 0:00:30]} Ke6 {[%emt 0:00:30]} 43. Rc8 {[%emt 0:01:30]} Rd1 {[%emt 0:00:30]} 44. Ra8 {[%emt 0:00:30]} Rd6 {[%emt 0:00:30]} 45. Ra7 {[%emt 0:05:30]} Kf6 {[%emt 0:00:00]} 46. Rc7 {[%emt 0:00:58]} h5 {[%emt 0:01:00]} 47. Rc8 {[%emt 0:01:43]} Kf7 {[%emt 0:02:30]} 48. Rh8 {[%emt 0:01:44]} Rc6 {[%emt 0:02:30]} 49. Kd3 {[%emt 0:08:10]} Rg6 {[%emt 0:00:30]} 50. Rxh5 {[%emt 0:01:29]} Rxg3+ {[%emt 0:00:30]} 51. Kc2 {[%emt 0:00:04]} Rxa3 {[%emt 0:00:30]} 52. h4 {[%emt 0:00:00]} Rh3 {[%emt 0:03:31]} 53. Rf5+ {[%emt 0:04:42]} Ke6 {[%emt 0:05:15]} 54. h5 {[%emt 0:00:13]} Re3 {[%emt 0:00:32]} 55. Rg5 {[%emt 0:00:39]} Rxe4 {[%emt 0:00:06]} 56. Rxg7 {[%emt 0:00:52]} Rxb4 {[%emt 0:00:05]} 57. Rg6+ {[%emt 0:00:01]} Kd5 {[%emt 0:01:51]} 58. Rxa6 {[%emt 0:00:30]} Rh4 {[%emt 0:00:03]} 59. h6 {[%emt 0:00:00]} Kd4 {[%emt 0:01:15]} 60. Rb6 {[%emt 0:01:38]} Rh2+ {[%emt 0:06:59]} 61. Kc1 {[%emt 0:01:21]} Kc3 {[%emt 0:01:02]} 62. Rc6+ {[%emt 0:00:02]} Kb3 {[%emt 0:00:00]} 63. Rd6 {[%emt 0:02:19]} e4 {[%emt 0:01:00]} 64. Re6 {[%emt 0:00:34]} b4 {[%emt 0:00:07]} 65. Kd1 {[%emt 0:02:27]} Kc3 {[%emt 0:01:42]} 66. Rc6+ {[%emt 0:00:56]} Kb2 {[%emt 0:00:07]} 67. Rc4 {[%emt 0:00:19]} b3 {[%emt 0:00:06]} 68. Rxe4 {[%emt 0:00:00]} Rxh6 {[%emt 0:00:39]} 69. Re2+ {[%emt 0:00:00]} Ka1 {[%emt 0:00:05]} 70. Re8 {[%emt 0:00:55]} Rd6+ {[%emt 0:00:09]} 71. Ke2 {[%emt 0:00:00]} Ra6 {[%emt 0:00:18]} 0-1

[Event "World Junior U20 Open 2018"]
[Site "Gebze"]
[Date "2018.09.12"]
[Round "8.78"]
[White "Beukema, Christiaan"]
[Black "Erdogan, Anil Berk"]
[Result "0-1"]
[ECO "B23"]
[WhiteElo "1904"]
[BlackElo "2083"]
[Annotator "NA"]
[PlyCount "52"]
[EventDate "2018.09.05"]
[EventType "swiss"]
[EventCountry "TUR"]
[SourceTitle "playchess.com"]
[Source "ChessBase"]
[SourceQuality "1"]
[TimeControl "40/5400+30:1800+30"]

1. e4 {[%emt 0:01:30]} c5 {[%emt 0:00:30]} 2. Nc3 {[%emt 0:00:30]} Nc6 {[%emt 0:00:30]} 3. Bb5 {[%emt 0:00:30]} Nd4 {[%emt 0:00:30]} 4. Bc4 {[%emt 0:00:30]} g6 {[%emt 0:00:00]} 5. Nf3 {[%emt 0:00:30]} Bg7 {[%emt 0:00:00]} 6. d3 {[%emt 0:00:30]} e6 {[%emt 0:03:30]} 7. Nxd4 {[%emt 0:04:30]} cxd4 {[%emt 0:00:30]} 8. Nb5 {[%emt 0:00:30]} d6 {[%emt 0:14:30]} 9. O-O {[%emt 0:04:30]} a6 {[%emt 0:01:30]} 10. Na3 {[%emt 0:01:30]} Ne7 {[%emt 0:05:30]} 11. Bb3 {[%emt 0:03:30]} d5 {[%emt 0:05:30]} 12. Qf3 {[%emt 0:03:30]} b5 {[%emt 0:12:30]} 13. Re1 {[%emt 0:05:30]} dxe4 {[%emt 0:09:30]} 14. Qxe4 {[%emt 0:02:30]} Rb8 {[%emt 0:02:30]} 15. Bg5 {[%emt 0:04:30]} h6 {[%emt 0:13:30]} 16. Qf4 {[%emt 0:11:30]} Rb6 {[%emt 0:03:30]} 17. Bf6 {[%emt 0:02:30]} O-O {[%emt 0:01:30]} 18. Re4 {[%emt 0:02:30]} Bxf6 {[%emt 0:01:30]} 19. Qxf6 {[%emt 0:00:30]} Nf5 {[%emt 0:00:30]} 20. Qe5 {[%emt 0:04:30]} Qd6 {[%emt 0:02:30]} 21. c4 {[%emt 0:04:30]} dxc3 {[%emt 0:00:30]} 22. Qxd6 {[%emt 0:01:30]} Rxd6 {[%emt 0:04:26]} 23. bxc3 {[%emt 0:01:30]} Rxd3 {[%emt 0:00:02]} 24. c4 {[%emt 0:00:30]} Bb7 {[%emt 0:01:49]} 25. Re2 {[%emt 0:01:30]} Nd4 {[%emt 0:03:41]} 26. cxb5 {[%emt 0:02:30]} Nxe2+ {[%emt 0:00:08]} 0-1

[Event "World Junior U20 Open 2018"]
[Site "Gebze"]
[Date "2018.09.12"]
[Round "8.79"]
[White "Taalaibekov, Tagir"]
[Black "Nurgaliyev, Sauat"]
[Result "1-0"]
[ECO "A57"]
[WhiteElo "2291"]
[BlackElo "1685"]
[Annotator "NA"]
[PlyCount "79"]
[EventDate "2018.09.05"]
[EventType "swiss"]
[EventCountry "TUR"]
[SourceTitle "playchess.com"]
[Source "ChessBase"]
[SourceQuality "1"]
[TimeControl "40/5400+30:1800+30"]

1. d4 {[%emt 0:00:30]} Nf6 {[%emt 0:00:30]} 2. c4 {[%emt 0:00:00]} c5 {[%emt 0:00:30]} 3. d5 {[%emt 0:00:00]} b5 {[%emt 0:00:30]} 4. Qc2 {[%emt 0:00:00]} d6 {[%emt 0:04:30]} 5. e4 {[%emt 0:00:00]} b4 {[%emt 0:03:30]} 6. b3 {[%emt 0:01:30]} g6 {[%emt 0:01:30]} 7. Bb2 {[%emt 0:00:30]} Bg7 {[%emt 0:00:30]} 8. g3 {[%emt 0:00:30]} O-O {[%emt 0:00:30]} 9. Bg2 {[%emt 0:00:00]} Bb7 {[%emt 0:01:30]} 10. Nd2 {[%emt 0:02:00]} a5 {[%emt 0:05:30]} 11. Ne2 {[%emt 0:02:30]} Nbd7 {[%emt 0:02:30]} 12. O-O {[%emt 0:00:30]} e6 {[%emt 0:04:30]} 13. dxe6 {[%emt 0:07:30]} fxe6 {[%emt 0:00:00]} 14. e5 {[%emt 0:01:30]} Bxg2 {[%emt 0:00:00]} 15. exf6 {[%emt 0:00:30]} Bxf1 {[%emt 0:04:30]} 16. fxg7 {[%emt 0:00:30]} Bxe2 {[%emt 0:04:30]} 17. gxf8=Q+ {[%emt 0:00:00]} Nxf8 {[%emt 0:02:30]} 18. Qe4 {[%emt 0:04:00]} Bh5 {[%emt 0:00:30]} 19. g4 {[%emt 0:10:30]} Ra7 {[%emt 0:17:30]} 20. Nf3 {[%emt 0:10:30]} a4 {[%emt 0:09:30]} 21. Rd1 {[%emt 0:04:30]} axb3 {[%emt 0:01:30]} 22. axb3 {[%emt 0:00:00]} Bxg4 {[%emt 0:09:30]} 23. Qxg4 {[%emt 0:00:00]} Rd7 {[%emt 0:02:30]} 24. Ng5 {[%emt 0:02:30]} h5 {[%emt 0:03:49]} 25. Qg3 {[%emt 0:00:30]} Qe7 {[%emt 0:02:43]} 26. Ne4 {[%emt 0:00:30]} e5 {[%emt 0:09:04]} 27. f4 {[%emt 0:00:30]} Rd8 {[%emt 0:03:17]} 28. fxe5 {[%emt 0:00:30]} dxe5 {[%emt 0:00:09]} 29. Rxd8 {[%emt 0:00:30]} Qxd8 {[%emt 0:00:13]} 30. Qxe5 {[%emt 0:00:30]} Qd1+ {[%emt 0:00:20]} 31. Kf2 {[%emt 0:00:00]} Qc2+ {[%emt 0:00:26]} 32. Ke1 {[%emt 0:00:00]} Qb1+ {[%emt 0:00:51]} 33. Kd2 {[%emt 0:00:30]} Ne6 {[%emt 0:02:20]} 34. Qxe6+ {[%emt 0:00:00]} Kf8 {[%emt 0:00:00]} 35. Bf6 {[%emt 0:01:00]} Qa2+ {[%emt 0:00:33]} 36. Ke3 {[%emt 0:00:30]} Qxb3+ {[%emt 0:00:00]} 37. Kf4 {[%emt 0:00:30]} g5+ {[%emt 0:00:05]} 38. Nxg5 {[%emt 0:00:00]} Qxc4+ {[%emt 0:01:08]} 39. Qxc4 {[%emt 0:00:00]} Ke8 {[%emt 0:00:13]} 40. Qf7# {[%emt 0:00:00]} 1-0

[Event "World Junior U20 Open 2018"]
[Site "Gebze"]
[Date "2018.09.12"]
[Round "8.80"]
[White "Baylav, Can"]
[Black "Yaran, Siar"]
[Result "1-0"]
[ECO "C91"]
[WhiteElo "2026"]
[BlackElo "2271"]
[Annotator "NA"]
[PlyCount "125"]
[EventDate "2018.09.05"]
[EventType "swiss"]
[EventCountry "TUR"]
[SourceTitle "playchess.com"]
[Source "ChessBase"]
[SourceQuality "1"]
[TimeControl "40/5400+30:1800+30"]

1. e4 {[%emt 0:00:30]} e5 {[%emt 0:00:30]} 2. Nf3 {[%emt 0:00:30]} Nc6 {[%emt 0:00:00]} 3. Bb5 {[%emt 0:00:00]} a6 {[%emt 0:00:00]} 4. Ba4 {[%emt 0:00:00]} Nf6 {[%emt 0:00:00]} 5. O-O {[%emt 0:00:30]} Be7 {[%emt 0:00:00]} 6. Re1 {[%emt 0:00:30]} b5 {[%emt 0:00:00]} 7. Bb3 {[%emt 0:00:30]} d6 {[%emt 0:00:00]} 8. c3 {[%emt 0:00:00]} O-O {[%emt 0:00:00]} 9. d4 {[%emt 0:00:00]} Bg4 {[%emt 0:00:00]} 10. d5 {[%emt 0:02:30]} Na5 {[%emt 0:00:30]} 11. Bc2 {[%emt 0:00:30]} c6 {[%emt 0:00:00]} 12. dxc6 {[%emt 0:01:30]} Qc7 {[%emt 0:00:00]} 13. Nbd2 {[%emt 0:01:30]} Qxc6 {[%emt 0:01:30]} 14. Nf1 {[%emt 0:00:30]} h6 {[%emt 0:01:30]} 15. h3 {[%emt 0:01:30]} Be6 {[%emt 0:00:00]} 16. Ng3 {[%emt 0:04:30]} Rfc8 {[%emt 0:03:00]} 17. Nh4 {[%emt 0:04:30]} Kh7 {[%emt 0:10:30]} 18. Ngf5 {[%emt 0:06:30]} Bf8 {[%emt 0:00:30]} 19. Qf3 {[%emt 0:08:30]} Ng8 {[%emt 0:00:30]} 20. Ne3 {[%emt 0:04:30]} Nc4 {[%emt 0:03:30]} 21. Nd5 {[%emt 0:02:30]} a5 {[%emt 0:00:30]} 22. a4 {[%emt 0:01:30]} b4 {[%emt 0:00:30]} 23. b3 {[%emt 0:00:30]} Nb6 {[%emt 0:00:30]} 24. c4 {[%emt 0:00:30]} Nd7 {[%emt 0:00:30]} 25. g4 {[%emt 0:04:30]} g6 {[%emt 0:01:30]} 26. Be3 {[%emt 0:07:30]} Ra6 {[%emt 0:01:30]} 27. Rad1 {[%emt 0:02:30]} Nc5 {[%emt 0:00:30]} 28. Qg3 {[%emt 0:01:30]} f6 {[%emt 0:01:30]} 29. f4 {[%emt 0:01:30]} Bf7 {[%emt 0:00:30]} 30. g5 {[%emt 0:02:30]} exf4 {[%emt 0:01:30]} 31. Qxf4 {[%emt 0:00:00]} hxg5 {[%emt 0:10:30]} 32. Nxf6+ {[%emt 0:00:00]} Nxf6 {[%emt 0:01:30]} 33. Qxf6 {[%emt 0:00:30]} Qe8 {[%emt 0:00:00]} 34. Bxg5 {[%emt 0:01:30]} d5 {[%emt 0:01:00]} 35. Qf3 {[%emt 0:11:30]} dxc4 {[%emt 0:00:30]} 36. bxc4 {[%emt 0:00:30]} b3 {[%emt 0:01:30]} 37. Bb1 {[%emt 0:01:30]} Be7 {[%emt 0:03:30]} 38. Bxe7 {[%emt 0:02:30]} Qxe7 {[%emt 0:00:30]} 39. Qg4 {[%emt 0:00:30]} Qe6 {[%emt 0:04:30]} 40. Qg3 {[%emt 0:00:00]} Nxa4 {[%emt 0:00:00]} 41. Nf3 {[%emt 0:05:00]} Kg8 {[%emt 0:03:00]} 42. Ne5 {[%emt 0:02:30]} Be8 {[%emt 0:00:30]} 43. Rf1 {[%emt 0:04:30]} Nc5 {[%emt 0:02:30]} 44. Ng4 {[%emt 0:02:30]} Nd7 {[%emt 0:08:30]} 45. e5 {[%emt 0:02:30]} Rxc4 {[%emt 0:00:30]} 46. Nf6+ {[%emt 0:02:30]} Nxf6 {[%emt 0:14:30]} 47. Rxf6 {[%emt 0:00:30]} Qc8 {[%emt 0:02:30]} 48. Bxg6 {[%emt 0:00:30]} Rg4 {[%emt 0:03:30]} 49. Qxg4 {[%emt 0:04:30]} Qxg4+ {[%emt 0:01:30]} 50. hxg4 {[%emt 0:00:00]} Rxf6 {[%emt 0:00:00]} 51. Bxe8 {[%emt 0:00:00]} Rf4 {[%emt 0:02:00]} 52. Bd7 {[%emt 0:03:30]} a4 {[%emt 0:01:30]} 53. Bf5 {[%emt 0:10:30]} Kg7 {[%emt 0:03:30]} 54. e6 {[%emt 0:01:30]} Kf6 {[%emt 0:01:30]} 55. Rd7 {[%emt 0:04:30]} Rxf5 {[%emt 0:02:30]} 56. gxf5 {[%emt 0:00:30]} b2 {[%emt 0:03:30]} 57. Rd1 {[%emt 0:00:53]} a3 {[%emt 0:00:30]} 58. Re1 {[%emt 0:00:09]} a2 {[%emt 0:01:30]} 59. e7 {[%emt 0:00:28]} b1=Q {[%emt 0:22:52]} 60. e8=Q {[%emt 0:00:30]} Qb6+ {[%emt 0:02:11]} 61. Kg2 {[%emt 0:00:30]} Qb7+ {[%emt 0:00:13]} 62. Kg3 {[%emt 0:00:30]} Qc7+ {[%emt 0:00:04]} 63. Kg4 {[%emt 0:00:30]} 1-0

[Event "World Junior U20 Open 2018"]
[Site "Gebze"]
[Date "2018.09.12"]
[Round "8.81"]
[White "Tuna, Alp"]
[Black "Helander, Benjamin"]
[Result "1-0"]
[ECO "A34"]
[WhiteElo "2253"]
[BlackElo "1994"]
[Annotator "NA"]
[PlyCount "103"]
[EventDate "2018.09.05"]
[EventType "swiss"]
[EventCountry "TUR"]
[SourceTitle "playchess.com"]
[Source "ChessBase"]
[SourceQuality "1"]
[TimeControl "40/5400+30:1800+30"]

1. g3 {[%emt 0:00:30]} Nf6 {[%emt 0:00:30]} 2. Bg2 {[%emt 0:00:00]} d5 {[%emt 0:00:30]} 3. Nf3 {[%emt 0:00:00]} c5 {[%emt 0:00:30]} 4. O-O {[%emt 0:00:30]} e6 {[%emt 0:02:30]} 5. c4 {[%emt 0:01:30]} Be7 {[%emt 0:00:30]} 6. cxd5 {[%emt 0:02:30]} Nxd5 {[%emt 0:02:30]} 7. Nc3 {[%emt 0:04:30]} Nc6 {[%emt 0:01:30]} 8. d4 {[%emt 0:01:30]} cxd4 {[%emt 0:06:30]} 9. Nxd5 {[%emt 0:04:30]} exd5 {[%emt 0:02:30]} 10. Nxd4 {[%emt 0:00:30]} O-O {[%emt 0:00:30]} 11. Be3 {[%emt 0:01:30]} Bf6 {[%emt 0:10:30]} 12. Rc1 {[%emt 0:02:30]} Nxd4 {[%emt 0:07:30]} 13. Bxd4 {[%emt 0:00:30]} Be6 {[%emt 0:00:30]} 14. Qd2 {[%emt 0:08:30]} Bxd4 {[%emt 0:03:30]} 15. Qxd4 {[%emt 0:00:30]} Qa5 {[%emt 0:00:30]} 16. a3 {[%emt 0:06:30]} Rac8 {[%emt 0:10:30]} 17. Rxc8 {[%emt 0:02:30]} Rxc8 {[%emt 0:00:30]} 18. Rd1 {[%emt 0:00:00]} Kf8 {[%emt 0:11:30]} 19. Bxd5 {[%emt 0:04:00]} Qxd5 {[%emt 0:01:30]} 20. Qxd5 {[%emt 0:01:30]} Bxd5 {[%emt 0:00:30]} 21. Rxd5 {[%emt 0:00:00]} Rc2 {[%emt 0:01:30]} 22. Rb5 {[%emt 0:00:00]} b6 {[%emt 0:00:00]} 23. Kf1 {[%emt 0:00:30]} Ke7 {[%emt 0:02:00]} 24. Ke1 {[%emt 0:00:00]} Rc1+ {[%emt 0:05:30]} 25. Kd2 {[%emt 0:00:00]} Rf1 {[%emt 0:00:30]} 26. Ke3 {[%emt 0:02:30]} f6 {[%emt 0:02:30]} 27. h4 {[%emt 0:00:30]} Rb1 {[%emt 0:01:30]} 28. Kf4 {[%emt 0:06:30]} Ke6 {[%emt 0:01:30]} 29. g4 {[%emt 0:00:30]} g6 {[%emt 0:03:30]} 30. h5 {[%emt 0:03:30]} Rc1 {[%emt 0:03:10]} 31. hxg6 {[%emt 0:02:30]} hxg6 {[%emt 0:00:08]} 32. f3 {[%emt 0:00:30]} Rc2 {[%emt 0:02:01]} 33. Ke3 {[%emt 0:01:30]} g5 {[%emt 0:01:17]} 34. Kd3 {[%emt 0:01:30]} Rc1 {[%emt 0:00:33]} 35. Rb4 {[%emt 0:01:30]} Rc5 {[%emt 0:02:17]} 36. Re4+ {[%emt 0:00:30]} Kd7 {[%emt 0:01:07]} 37. Rc4 {[%emt 0:02:30]} Re5 {[%emt 0:01:53]} 38. Rd4+ {[%emt 0:00:30]} Kc7 {[%emt 0:00:32]} 39. Re4 {[%emt 0:01:30]} Rd5+ {[%emt 0:00:47]} 40. Kc3 {[%emt 0:00:00]} a5 {[%emt 0:00:00]} 41. Rc4+ {[%emt 0:05:00]} Kb7 {[%emt 0:04:15]} 42. Rd4 {[%emt 0:00:00]} Re5 {[%emt 0:01:30]} 43. e4 {[%emt 0:05:00]} Rc5+ {[%emt 0:01:30]} 44. Kd3 {[%emt 0:02:30]} Rb5 {[%emt 0:01:30]} 45. b4 {[%emt 0:00:30]} axb4 {[%emt 0:00:30]} 46. axb4 {[%emt 0:00:30]} Kc6 {[%emt 0:00:30]} 47. Kc4 {[%emt 0:00:30]} Re5 {[%emt 0:00:00]} 48. Rd5 {[%emt 0:01:30]} Re8 {[%emt 0:03:00]} 49. b5+ {[%emt 0:00:30]} Kc7 {[%emt 0:00:30]} 50. Rf5 {[%emt 0:02:30]} Re6 {[%emt 0:00:30]} 51. e5 {[%emt 0:01:30]} fxe5 {[%emt 0:01:30]} 52. Kd5 {[%emt 0:00:30]} 1-0

[Event "World Junior U20 Open 2018"]
[Site "Gebze"]
[Date "2018.09.12"]
[Round "8.82"]
[White "Fleri, Matthew"]
[Black "Maltezeanu, Stefan"]
[Result "0-1"]
[ECO "B22"]
[WhiteElo "1625"]
[BlackElo "2089"]
[Annotator "NA"]
[PlyCount "41"]
[EventDate "2018.09.05"]
[EventType "swiss"]
[EventCountry "TUR"]
[SourceTitle "playchess.com"]
[Source "ChessBase"]
[SourceQuality "1"]
[TimeControl "40/5400+30:1800+30"]

1. e4 {[%emt 0:00:30]} c5 {[%emt 0:00:30]} 2. c3 {[%emt 0:00:00]} Nf6 {[%emt 0:00:30]} 3. e5 {[%emt 0:00:00]} Nd5 {[%emt 0:00:30]} 4. d4 {[%emt 0:00:30]} cxd4 {[%emt 0:00:30]} 5. Nf3 {[%emt 0:00:00]} d6 {[%emt 0:00:00]} 6. cxd4 {[%emt 0:01:00]} e6 {[%emt 0:00:00]} 7. Nc3 {[%emt 0:00:30]} dxe5 {[%emt 0:01:30]} 8. Nxe5 {[%emt 0:01:30]} Bb4 {[%emt 0:03:30]} 9. Bb5+ {[%emt 0:01:30]} Nd7 {[%emt 0:00:30]} 10. Bd2 {[%emt 0:01:30]} Bxc3 {[%emt 0:01:30]} 11. bxc3 {[%emt 0:00:30]} O-O {[%emt 0:00:30]} 12. Nxd7 {[%emt 0:01:30]} Bxd7 {[%emt 0:00:00]} 13. Bd3 {[%emt 0:00:30]} Bc6 {[%emt 0:07:00]} 14. Qh5 {[%emt 0:04:30]} Nf6 {[%emt 0:00:30]} 15. Qh3 {[%emt 0:01:30]} Qd5 {[%emt 0:01:30]} 16. O-O {[%emt 0:02:30]} Bb5 {[%emt 0:04:30]} 17. Rfe1 {[%emt 0:09:30]} Bxd3 {[%emt 0:00:30]} 18. Qxd3 {[%emt 0:00:00]} Rfd8 {[%emt 0:00:30]} 19. Re5 {[%emt 0:04:00]} Qxe5 {[%emt 0:01:30]} 20. dxe5 {[%emt 0:00:30]} Rxd3 {[%emt 0:00:30]} 21. Bc1 {[%emt 0:00:30]} 0-1